[Event "Fall Chess Classic-A 2019"]
[Site "Saint Louis"]
[Date "2019.09.15"]
[Round "6.1"]
[White "Robson, Ray"]
[Black "Akobian, Varuzhan"]
[Result "1-0"]
[ECO "C11"]
[WhiteElo "2653"]
[BlackElo "2618"]
[Annotator "RC"]
[PlyCount "111"]
[EventDate "2019.09.10"]
[EventType "tourn"]
[EventCountry "USA"]
[SourceTitle "playchess.com"]
[Source "ChessBase"]
[SourceQuality "1"]
[TimeControl "40/5400+30:1800+30"]

1. e4 {[%emt 0:09:05]} e6 {[%emt 0:00:01]} 2. d4 {[%emt 0:00:15]} d5 {[%emt 0:00:12]} 3. Nc3 {[%emt 0:00:16]} Nf6 {[%emt 0:00:08]} 4. e5 {[%emt 0:00:18]} Nfd7 {[%emt 0:00:04]} 5. f4 {[%emt 0:00:18]} c5 {[%emt 0:00:34]} 6. Nf3 {[%emt 0:00:16]} Nc6 {[%emt 0:02:28]} 7. Be3 {[%emt 0:00:20]} Qb6 {[%emt 0:04:17]} 8. Na4 {[%emt 0:00:34]} Qa5+ {[%emt 0:00:35]} 9. c3 {[%emt 0:00:21]} b6 {[%emt 0:00:10]} 10. Bd2 {[%emt 0:01:30]} c4 {[%emt 0:00:48]} 11. b4 {[%emt 0:00:27]} Qa6 {[%emt 0:00:03]} 12. Be2 {[%emt 0:03:04]} Be7 {[%emt 0:01:52]} 13. O-O {[%emt 0:00:53]} O-O {[%emt 0:00:31]} 14. Qc2 {[%emt 0:06:34]} f5 {[%emt 0:00:46]} 15. Nb2 {[%emt 0:02:03]} b5 {[%emt 0:04:53]} 16. a4 {[%emt 0:01:11]} Nb6 {[%emt 0:21:44]} 17. a5 {[%emt 0:01:38]} Nd7 {[%emt 0:00:10]} 18. Nd1 {[%emt 0:06:44]} Rf7 {[%emt 0:05:20]} 19. Ng5 {[%emt 0:01:19]} Bxg5 {[%emt 0:02:23]} 20. fxg5 {[%emt 0:00:04]} Ne7 {[%emt 0:03:18]} 21. h4 {[%emt 0:01:30]} Bb7 {[%emt 0:09:59]} 22. Nf2 {[%emt 0:07:06]} Qc6 {[%emt 0:15:23]} 23. Nh3 {[%emt 0:01:35]} a6 {[%emt 0:06:01]} 24. Nf4 {[%emt 0:04:03]} Nf8 {[%emt 0:03:30]} 25. h5 {[%emt 0:01:52]} g6 {[%emt 0:00:44]} 26. Rf2 {[%emt 0:08:17]} Bc8 {[%emt 0:04:24]} 27. Raf1 {[%emt 0:02:39]} Bd7 {[%emt 0:01:33]} 28. g3 {[%emt 0:03:28]} Be8 {[%emt 0:01:50]} 29. Rh2 {[%emt 0:14:13]} Rg7 {[%emt 0:01:05]} 30. Kg2 {[%emt 0:04:24]} gxh5 {[%emt 0:04:00]} 31. Rfh1 {[%emt 0:00:30]} Bg6 {[%emt 0:04:15]} 32. Qd1 {[%emt 0:00:39]} Kf7 {[%emt 0:00:58]} 33. Bxh5 {[%emt 0:04:14]} Ke8 {[%emt 0:00:34]} 34. Bf3 {[%emt 0:05:39]} Kd7 {[%emt 0:00:24]} 35. Qe2 {[%emt 0:00:27]} Re8 {[%emt 0:01:50]} 36. Kf2 {[%emt 0:00:25]} Ra8 {[%emt 0:00:40]} 37. Ke1 {[%emt 0:00:46]} Kc7 {[%emt 0:00:17]} 38. Kd1 {[%emt 0:00:57]} Nd7 {[%emt 0:00:38]} 39. Kc1 {[%emt 0:00:47]} Rag8 {[%emt 0:00:05]} 40. Rh6 {[%emt 0:00:00]} Nf8 {[%emt 0:00:00]} 41. Qg2 {[%emt 0:04:41]} Qe8 {[%emt 0:01:54]} 42. Kb2 {[%emt 0:00:52]} Qf7 {[%emt 0:09:38]} 43. Rf1 {[%emt 0:01:22]} Qe8 {[%emt 0:00:28]} 44. g4 {[%emt 0:02:58]} fxg4 {[%emt 0:11:26]} 45. Bxg4 {[%emt 0:00:44]} Be4 {[%emt 0:01:40]} 46. Qf2 {[%emt 0:09:24]} Rxg5 {[%emt 0:07:41]} 47. Nxe6+ {[%emt 0:01:09]} Nxe6 {[%emt 0:00:06]} 48. Bxg5 {[%emt 0:00:28]} Rxg5 {[%emt 0:02:07]} 49. Rxe6 {[%emt 0:00:53]} Rxg4 {[%emt 0:00:05]} 50. Qf7 {[%emt 0:00:36]} Rg2+ {[%emt 0:00:44]} 51. Kc1 {[%emt 0:00:30]} Qxf7 {[%emt 0:00:40]} 52. Rxf7 {[%emt 0:00:30]} Rc2+ {[%emt 0:00:32]} 53. Kd1 {[%emt 0:00:00]} Rxc3 {[%emt 0:00:03]} 54. Rfxe7+ {[%emt 0:00:08]} Kd8 {[%emt 0:00:15]} 55. Re8+ {[%emt 0:00:08]} Kd7 {[%emt 0:00:07]} 56. R6e7+ {[%emt 0:00:06]} 1-0